bitfinex/quotes_ETHUSD_20250628
["timestamp","ask_amount","ask_price","bid_price","bid_amount"]
[1751119051787,0.2076,2423.2,2423.1,2.47616689]
[1751119053410,0.2076,2423.2,2423.0,3.0262115]
[1751119055013,0.2076,2423.2,2423.1,2.47616689]
[1751119055181,0.002,2423.2,2423.1,3.02616689]
[1751119069411,0.002,2423.2,2423.1,0.55]
[1751119071724,0.002,2423.2,2423.1,3.02616689]
[1751119072324,0.002,2423.2,2423.1,0.55]
[1751119082926,3.03069864,2423.2,2422.9,0.55]
[1751119083131,2.68371199,2423.2,2422.9,0.55]
[1751119085532,0.2076,2423.2,2422.9,0.55]
[1751119086132,2.68367343,2423.2,2422.9,0.55]
[1751119089032,0.2076,2423.2,2422.9,0.55]
[1751119089237,3.26196908,2423.0,2422.9,0.55]
[1751119089622,0.7857,2423.0,2422.9,0.55]
[1751119091337,0.7857,2423.0,2422.8,0.2056]
[1751119098754,3.48810906,2423.2,2422.8,0.2056]
[1751119098920,4.08452261,2423.2,2422.8,0.2056]
[1751119118331,4.08452261,2423.2,2422.8,2.68206147]
[1751119118531,0.80401355,2423.2,2422.8,2.68206147]
[1751119118831,0.80401355,2423.2,2422.8,3.45836147]
[1751119119333,3.28008857,2423.2,2422.8,3.45836147]
[1751119121366,3.28008857,2423.2,2422.8,0.9819]
[1751119127481,0.2076,2423.2,2423.0,0.8311]
[1751119132204,0.2076,2423.2,2423.0,3.30735776]
[1751119132492,0.002,2423.2,2423.1,3.84306689]
[1751119132704,0.002,2423.2,2423.1,4.04866689]
[1751119133300,0.002,2423.2,2423.1,1.5725]
[1751119133602,0.002,2423.2,2423.1,1.0225]
[1751119133765,0.002,2423.2,2423.0,0.55]
[1751119134392,0.002,2423.2,2423.0,3.02626507]
[1751119135494,0.002,2423.2,2423.0,0.55]
[1751119135674,0.002,2423.2,2423.0,3.02626162]
[1751119138209,0.002,2423.2,2423.0,0.55]
[1751119138381,0.002,2423.2,2423.0,3.02622484]
[1751119140511,0.002,2423.2,2422.9,0.977]
[1751119140693,0.002,2423.2,2422.5,6.69717579]
[1751119140694,2.4762189,2423.1,2422.6,3.79801054]
[1751119140862,2.47618184,2423.1,2422.8,6.623]
[1751119141066,2.47618184,2423.1,2422.8,0.55]
[1751119141916,3.48342161,2423.2,2422.8,0.55]
[1751119142311,2.47622796,2423.1,2422.8,0.55]
[1751119143116,4.74686035,2423.2,2422.8,0.55]
[1751119145400,3.48341479,2423.2,2422.8,0.55]
[1751119147438,2.47624573,2423.1,2422.8,0.55]
[1751119148105,2.47630905,2423.0,2422.7,0.55]
[1751119148303,2.68190905,2423.0,2422.7,0.55]
[1751119149725,2.68190905,2423.0,2422.5,7.19614478]
[1751119149726,2.47641829,2422.9,2422.5,7.19614478]
[1751119149911,2.68201829,2422.9,2422.5,7.19614478]
[1751119152018,0.2056,2422.9,2422.5,9.67290838]
[1751119152525,2.68197493,2422.9,2422.5,9.67290838]
[1751119156339,2.68197493,2422.9,2422.5,7.19614478]
[1751119157642,2.68197493,2422.9,2422.5,9.67292335]
[1751119158413,0.2056,2422.9,2422.7,0.7847]
[1751119159118,0.2056,2422.9,2422.7,3.26123112]
[1751119159437,0.2056,2423.1,2422.7,3.26123112]
[1751119159637,0.2056,2423.1,2422.8,2.47646841]
[1751119163463,0.2056,2423.1,2422.9,0.7664]
[1751119164529,0.2056,2423.1,2422.9,3.24276812]
[1751119165450,0.002,2423.2,2423.0,2.47626908]
[1751119165615,0.2076,2423.2,2423.0,2.47626908]
[1751119168052,0.002,2423.2,2423.0,2.47626908]
[1751119168652,0.002,2423.2,2423.1,2.47616689]
[1751119169761,0.002,2423.2,2423.1,3.02616689]
[1751119169924,0.002,2423.2,2423.1,3.77786689]
[1751119180490,0.002,2423.2,2423.1,10.40086689]
[1751119194614,0.002,2423.2,2423.1,17.07335182]
[1751119200442,0.002,2423.2,2423.1,3.02616689]
[1751119200742,0.002,2423.2,2423.1,16.32065182]
[1751119202723,0.002,2423.2,2423.1,3.02616689]
[1751119203025,0.002,2423.2,2423.0,2.68184632]
[1751119203344,0.002,2423.2,2423.1,9.09816689]
[1751119203709,0.002,2423.2,2423.1,9.64816689]
[1751119206020,0.002,2423.2,2423.1,16.32065182]
[1751119206717,0.002,2423.2,2423.1,19.18018537]
[1751119215655,1.681,2424.1,2423.5,2.47574662]
[1751119215953,0.2056,2423.8,2423.6,6.622]
[1751119217257,0.2056,2423.8,2423.5,9.09774662]
[1751119218757,0.9943,2423.8,2423.5,9.09774662]
[1751119221264,0.9943,2423.8,2423.5,6.622]
[1751119222373,0.9943,2423.8,2423.5,9.09773794]
[1751119238924,0.7637,2423.7,2423.4,9.64681194]
[1751119246641,0.7637,2423.7,2423.4,9.09681194]
[1751119249814,0.7637,2423.7,2423.4,2.47581194]
[1751119250143,0.7637,2423.7,2423.4,9.09681194]
[1751119251145,0.7637,2423.7,2423.4,2.47581194]
[1751119251317,0.7637,2423.7,2423.4,9.09681194]
[1751119251516,0.7637,2423.7,2423.4,6.621]
[1751119251845,0.7637,2423.7,2423.4,9.09684696]
[1751119261072,0.7637,2423.7,2423.5,2.47574753]
[1751119264480,0.2056,2423.8,2423.5,2.47574753]
[1751119264786,0.0997,2424.0,2423.9,2.47534964]
[1751119264941,0.0997,2424.0,2423.9,9.14773142]
[1751119265578,0.0997,2424.0,2423.8,2.68095485]
[1751119266544,0.0997,2424.0,2423.8,9.30195485]
[1751119274967,0.0997,2424.0,2423.8,6.8266]
[1751119275799,0.0997,2424.0,2423.8,9.30204347]
[1751119276097,0.0997,2424.0,2423.8,6.8266]
[1751119276677,0.0997,2424.0,2423.8,9.30202453]
[1751119276996,0.0997,2424.0,2423.8,2.68102453]
[1751119277999,0.0997,2424.0,2423.8,0.2056]
[1751119278566,0.8055,2423.9,2423.6,6.8256]
[1751119278785,0.8055,2423.9,2423.6,9.30124655]
[1751119285324,0.8055,2423.9,2423.7,2.4755529]
[1751119290430,0.3053,2424.0,2423.7,2.4755529]
[1751119299945,0.3053,2424.0,2423.6,10.08260615]
[1751119300147,0.91170576,2424.0,2423.6,10.08260615]
[1751119300646,0.91170576,2424.0,2423.7,2.47554649]
[1751119309990,0.91170576,2424.0,2423.8,2.47543584]
[1751119310183,0.3053,2424.0,2423.8,2.47543584]
[1751119314279,0.3053,2424.0,2423.7,3.2524098]
[1751119314483,0.3053,2424.0,2423.7,9.8724098]
[1751119315692,0.3053,2424.0,2423.8,2.47544714]
[1751119323606,0.3053,2424.0,2423.7,9.87240227]
[1751119323974,0.3053,2424.0,2423.7,9.09550227]
[1751119324303,1.0672,2424.0,2423.8,6.62]
[1751119325527,3.4430023,2423.8,2423.4,6.62]
[1751119325724,0.9675,2423.8,2423.4,9.09585762]
[1751119326226,0.9675,2423.8,2423.5,2.47574535]
[1751119326519,0.9675,2423.8,2423.6,2.4756549]
[1751119326905,0.9675,2423.8,2423.5,2.47570498]
[1751119331129,0.9675,2423.8,2423.5,2.4757582]
[1751119331298,0.2056,2423.8,2423.5,2.4757582]
[1751119333634,0.2056,2423.8,2423.6,2.47564913]
[1751119340244,0.2056,2423.8,2423.6,2.47565604]
[1751119344468,0.2056,2423.8,2423.7,2.4755539]
[1751119344935,0.3053,2424.0,2423.9,2.47534964]
[1751119345256,0.0997,2424.0,2423.9,2.47534964]
[1751119358996,0.0997,2424.0,2423.9,9.14773142]
[1751119361300,0.0997,2424.0,2423.9,15.76773142]
[1751119361804,0.0997,2424.0,2423.9,16.52813142]
[1751119362173,0.0997,2424.0,2423.9,17.07813142]
[1751119362385,0.0997,2424.0,2423.9,17.28373142]
[1751119376514,0.0997,2424.0,2423.9,18.96373142]
[1751119385429,0.0997,2424.0,2423.9,28.96373142]
[1751119385635,0.0997,2424.0,2423.9,35.6361132]
[1751119385833,0.0997,2424.0,2423.9,56.6130152]
[1751119386796,0.0997,2424.0,2423.9,55.4226682]
[1751119387628,0.0997,2424.0,2423.9,35.6361132]
[1751119388429,0.0997,2424.0,2423.9,41.4931792]
[1751119388729,0.0997,2424.0,2423.9,49.1542092]
[1751119389029,0.0997,2424.0,2423.9,45.9342092]
[1751119389516,0.0997,2424.0,2423.9,45.5392092]
[1751119389705,0.0997,2424.0,2423.9,48.0152992]
[1751119390731,0.0997,2424.0,2423.9,48.8385352]
[1751119391741,0.0997,2424.0,2423.9,35.6361132]
[1751119391898,0.0997,2424.0,2423.9,48.8385352]
[1751119393644,0.0997,2424.0,2423.9,48.2835352]
[1751119393946,0.0997,2424.0,2423.9,48.3425352]
[1751119394232,0.0997,2424.0,2423.9,45.7025352]
[1751119395146,0.0997,2424.0,2423.9,42.7486252]
[1751119395333,0.0997,2424.0,2423.9,39.4215952]
[1751119396436,0.0997,2424.0,2423.9,41.8166512]
[1751119397532,0.0997,2424.0,2423.9,35.6361132]
[1751119397833,0.0997,2424.0,2423.9,51.0015522]
[1751119398636,0.0997,2424.0,2423.9,51.3645522]
[1751119399752,0.0997,2424.0,2423.9,55.7255262]
[1751119400647,0.0997,2424.0,2423.9,65.6361132]
[1751119401244,0.0997,2424.0,2423.9,65.1102642]
[1751119401741,0.0997,2424.0,2423.9,65.6361132]
[1751119402146,0.0997,2424.0,2423.9,65.1186642]
[1751119402953,0.0997,2424.0,2423.9,63.6738062]
[1751119403331,0.0997,2424.0,2423.9,35.6361132]
[1751119403518,0.0997,2424.0,2423.9,62.6753292]
[1751119403718,0.0997,2424.0,2423.9,35.6361132]
[1751119403978,0.0997,2424.0,2423.9,62.0860272]
[1751119404766,0.0997,2424.0,2423.9,65.6061272]
[1751119405174,0.7657,2424.9,2424.8,3.02443088]
[1751119405470,0.7657,2424.9,2424.8,16.31381266]
[1751119405677,0.7657,2424.9,2424.8,16.51941266]
[1751119406676,0.002,2425.0,2424.9,3.02432883]
[1751119407976,0.002,2425.0,2424.9,13.85152883]
[1751119410064,0.002,2425.0,2424.9,23.31932883]
[1751119410667,0.002,2425.0,2424.9,32.83571524]
[1751119412081,0.002,2425.0,2424.9,37.22640424]
[1751119412747,0.002,2425.0,2424.9,13.02432883]
[1751119412952,0.002,2425.0,2424.9,21.32532883]
[1751119413152,0.7959,2425.0,2424.9,13.02432883]
[1751119413455,0.7959,2425.0,2424.9,2.47432883]
[1751119413674,0.7959,2425.0,2424.9,10.77532883]
[1751119414010,0.7959,2425.0,2424.9,11.32532883]
[1751119415465,0.7959,2425.0,2424.9,3.02432883]
[1751119415663,0.7959,2425.0,2424.9,9.64732883]
[1751119417362,0.7959,2425.0,2424.9,9.64832883]
[1751119418006,0.7959,2425.0,2424.9,9.85392883]
[1751119420796,0.6459,2425.0,2424.9,9.85392883]
[1751119421876,0.002,2425.2,2425.1,2.47412477]
[1751119422071,0.002,2425.2,2425.1,9.09712477]
[1751119423816,0.8244,2425.2,2425.1,9.09712477]
[1751119430445,0.002,2425.2,2425.1,9.09712477]
[1751119432650,0.7907,2425.2,2425.1,6.623]
[1751119433150,0.7907,2425.2,2425.1,6.62]
[1751119433365,1.13811287,2425.2,2424.9,3.22988088]
[1751119433530,0.7887,2425.1,2424.9,3.22989835]
[1751119433719,0.7887,2425.1,2425.0,6.62]
[1751119435658,0.7887,2425.1,2424.9,2.47432667]
[1751119435859,0.7887,2425.1,2425.0,6.62]
[1751119440656,0.7887,2425.1,2424.9,9.09432667]
[1751119441179,0.7887,2425.1,2424.9,2.47432667]
[1751119441389,0.7887,2425.1,2424.9,9.09432667]
[1751119443486,0.7887,2425.1,2424.9,6.62]
[1751119444948,0.7887,2425.1,2424.7,4.36307644]
[1751119445257,0.7887,2425.1,2424.9,6.619]
[1751119445454,0.7887,2425.1,2424.8,2.4744144]
[1751119445779,0.7887,2425.1,2424.9,6.619]
[1751119446775,0.7887,2425.1,2424.8,2.4744144]
[1751119446969,1.13592703,2425.1,2424.9,6.619]
[1751119448390,0.7887,2425.1,2424.9,9.09332146]
[1751119451856,0.7887,2425.1,2424.9,6.619]
[1751119452492,0.7887,2425.1,2424.9,9.09332495]
[1751119457495,0.7887,2425.1,2424.9,6.619]
[1751119459699,0.7887,2425.1,2424.9,6.617]
[1751119460594,0.7887,2425.1,2424.9,9.09132196]
[1751119461696,0.2076,2425.2,2424.9,2.47432196]
[1751119461902,0.2076,2425.2,2424.9,9.09132196]
[1751119464971,0.5519624,2425.2,2424.9,9.09132196]
[1751119465298,0.5519624,2425.2,2424.9,2.47432196]
[1751119465598,0.5519624,2425.2,2424.9,9.09132196]
[1751119466599,0.5519624,2425.2,2424.9,6.617]
[1751119468396,0.2076,2425.2,2424.9,16.51311761]
[1751119470610,0.2076,2425.2,2424.9,9.84858799]
[1751119470908,0.2076,2425.2,2425.0,2.47421842]
[1751119471107,0.2076,2425.2,2424.9,9.84857077]
[1751119478710,0.2076,2425.2,2425.0,2.47416392]
[1751119478880,0.002,2425.2,2425.1,2.47412477]
[1751119507433,0.002,2425.2,2425.0,2.67976994]
[1751119508147,0.002,2425.2,2425.0,6.616]
[1751119508442,0.2076,2425.2,2425.0,6.616]
[1751119510367,0.2076,2425.2,2424.8,2.67995961]
[1751119510559,2.68164094,2425.2,2424.9,6.616]
[1751119510757,0.2076,2425.2,2424.9,6.616]
[1751119511737,0.8016,2425.1,2424.9,6.616]
[1751119512065,0.8016,2425.1,2424.8,0.2056]
[1751119512278,0.8016,2425.1,2424.8,6.8216]
[1751119512651,3.27577224,2425.1,2424.8,6.8216]
[1751119512852,0.8016,2425.1,2424.8,6.8216]
[1751119517791,2.47428572,2425.0,2424.5,5.50502187]
[1751119517993,2.67988572,2425.0,2424.6,6.616]
[1751119518294,2.67988572,2425.0,2424.6,9.09063007]
[1751119519003,2.67988572,2425.0,2424.6,6.616]
[1751119519604,2.67352411,2425.0,2424.6,2.47463345]
[1751119519911,2.67352411,2425.0,2424.6,9.09063345]
[1751119520389,3.3948732,2425.0,2424.6,2.47463345]
[1751119520589,3.3948732,2425.0,2424.6,9.09063345]
[1751119522213,0.92694909,2425.0,2424.6,9.09063345]
[1751119522391,0.2056,2425.0,2424.6,9.09063345]
[1751119526211,0.2056,2425.0,2424.6,2.47463345]
[1751119526420,0.2056,2425.0,2424.6,9.09063345]
[1751119529715,0.2056,2425.0,2424.6,6.616]
[1751119529915,0.2056,2425.0,2424.6,9.09054508]
[1751119535786,2.67983021,2425.0,2424.6,9.09054508]
[1751119538226,0.2056,2425.0,2424.6,9.09054508]
[1751119544137,0.8235,2424.9,2424.6,6.616]
[1751119544314,0.8235,2424.9,2424.5,0.2056]
[1751119544519,0.8235,2424.9,2424.1,6.66382085]
[1751119544520,0.8235,2424.7,2424.3,2.47490094]
[1751119544725,0.8235,2424.7,2424.4,6.616]
[1751119545541,0.8235,2424.7,2424.4,9.09083831]
[1751119546839,0.8235,2424.7,2424.5,2.47471007]
[1751119547339,0.8235,2425.1,2424.7,2.47446944]
[1751119547512,1.11959903,2425.0,2424.7,2.47446944]
[1751119556358,1.11959903,2425.0,2424.6,2.47459344]
[1751119556755,0.2056,2425.0,2424.7,2.47452278]
[1751119566480,0.2056,2425.0,2424.6,2.47458133]
[1751119569756,0.2056,2425.0,2424.7,2.47452581]
[1751119571192,0.2056,2425.0,2424.8,2.47438223]
[1751119571387,0.2056,2425.0,2424.7,2.47447967]
[1751119571691,0.2056,2425.0,2424.8,2.47442629]
[1751119572384,0.2056,2425.0,2424.6,6.66382085]
[1751119572688,1.0301,2425.2,2425.0,2.47417345]
[1751119572857,1.30151,2425.2,2425.0,2.47417345]
[1751119573054,1.0301,2425.2,2425.0,2.47417345]
[1751119575895,1.0301,2425.2,2424.9,2.47427252]
[1751119584919,0.2076,2425.2,2425.0,2.47422068]
[1751119585817,0.2076,2425.2,2424.9,2.47428146]
[1751119594637,0.2076,2425.2,2424.9,2.47432883]
[1751119595001,0.2076,2425.2,2425.0,2.47420852]
[1751119595201,0.2076,2425.2,2425.1,2.47412477]
[1751119595427,0.002,2425.2,2425.0,2.47416784]
[1751119596541,0.002,2425.2,2425.0,2.47418215]
[1751119601144,0.002,2425.2,2424.9,2.67990215]
[1751119601319,0.002,2425.2,2424.9,2.67991248]
[1751119615555,0.002,2425.2,2424.9,0.2056]
[1751119615927,0.002,2425.2,2424.9,2.679921]
[1751119616958,0.002,2425.2,2424.9,0.2056]
[1751119617263,0.002,2425.2,2424.9,2.67992593]
[1751119619051,0.002,2425.2,2424.9,0.2056]
[1751119620366,0.002,2425.2,2424.9,2.67992224]
[1751119620666,0.002,2425.2,2424.9,2.67992638]
[1751119621470,0.002,2425.2,2424.9,0.2056]
[1751119623446,0.002,2425.2,2424.9,2.67991067]
[1751119625870,0.002,2425.2,2424.9,0.2056]
[1751119626273,0.8644,2424.9,2424.8,9.63937374]
[1751119626637,0.8644,2424.9,2424.8,9.84497374]
[1751119643660,0.8644,2424.9,2424.8,10.66747374]
[1751119665523,0.8644,2424.9,2424.8,9.84497374]
[1751119685423,0.8644,2424.9,2424.8,3.22997374]
[1751119685625,0.8644,2424.9,2424.8,9.84197374]
[1751119692340,0.8644,2424.9,2424.8,3.22997374]
[1751119692656,0.8644,2424.9,2424.8,9.84197374]
[1751119692819,0.8644,2424.9,2424.8,10.67167374]
[1751119693221,0.8644,2424.9,2424.8,27.33549459]
[1751119693425,0.8644,2424.9,2424.8,46.19726159]
[1751119693630,0.8644,2424.9,2424.8,37.55662359]
[1751119701046,0.8644,2424.9,2424.8,37.35102359]
[1751119705752,0.8644,2424.9,2424.8,27.12989459]
[1751119705922,0.8644,2424.9,2424.8,39.16912359]
[1751119706357,0.8644,2424.9,2424.8,38.77412359]
[1751119711174,0.8644,2424.9,2424.8,38.97972359]
[1751119712282,0.8644,2424.9,2424.8,49.83576359]
[1751119715073,0.8644,2424.9,2424.8,27.33549459]
[1751119715254,0.8644,2424.9,2424.8,57.33549459]
[1751119716890,0.8644,2424.9,2424.8,56.64196659]
[1751119717191,0.8644,2424.9,2424.8,27.33549459]
[1751119717365,0.8644,2424.9,2424.8,56.64206659]
[1751119717890,0.8644,2424.9,2424.8,55.77006659]
[1751119718487,0.8644,2424.9,2424.8,27.33549459]
[1751119718790,0.8644,2424.9,2424.8,55.77006659]
[1751119719697,0.8644,2424.9,2424.8,56.34392459]
[1751119719860,0.8644,2424.9,2424.8,51.38827559]
[1751119720475,0.8644,2424.9,2424.8,30.29735259]
[1751119720814,0.8644,2424.9,2424.8,30.24835659]
[1751119722454,0.8644,2424.9,2424.8,27.63079459]
[1751119723172,0.8644,2424.9,2424.8,28.18079459]
[1751119724594,0.8644,2424.9,2424.8,19.89379459]
[1751119724771,0.8644,2424.9,2424.8,28.18079459]
[1751119726298,0.8644,2424.9,2424.8,19.89379459]
[1751119726500,0.8644,2424.9,2424.8,28.18079459]
[1751119727293,0.8644,2424.9,2424.8,13.22997374]
[1751119727487,0.8644,2424.9,2424.8,28.18079459]
[1751119730967,0.8644,2424.9,2424.8,21.57079459]
[1751119731267,1.6799,2424.9,2424.8,28.18079459]
[1751119732992,1.6799,2424.9,2424.8,19.89379459]
[1751119733200,1.6799,2424.9,2424.8,28.17979459]
[1751119734100,0.8644,2424.9,2424.8,28.17979459]
[1751119734799,0.8644,2424.9,2424.8,34.84361544]
[1751119734971,0.8644,2424.9,2424.8,41.92732944]
[1751119735602,0.8644,2424.9,2424.8,37.82461544]
[1751119744893,0.8644,2424.9,2424.8,36.90550644]
[1751119745093,0.8644,2424.9,2424.8,30.24168559]
[1751119745600,0.8644,2424.9,2424.8,28.17979459]
[1751119748326,0.8644,2424.9,2424.8,34.84361544]
[1751119751530,0.8644,2424.9,2424.8,41.71331044]
[1751119756301,0.8644,2424.9,2424.8,62.12539444]
[1751119756931,0.8644,2424.9,2424.8,61.73809444]
[1751119757431,0.8644,2424.9,2424.8,61.73829444]
[1751119758432,0.8644,2424.9,2424.8,65.65221544]
[1751119760650,0.002,2425.2,2425.1,36.04890577]
[1751119760800,0.002,2425.2,2425.1,49.32172662]
[1751119761006,0.002,2425.2,2425.1,49.52732662]
[1751119761747,0.002,2425.2,2425.1,57.31834562]
[1751119762940,0.002,2425.2,2425.1,27.31834562]
[1751119763346,0.002,2425.2,2425.1,48.57588162]
[1751119763706,0.002,2425.2,2425.1,48.37588162]
[1751119764235,0.002,2425.2,2425.1,48.07588162]
[1751119765110,0.002,2425.2,2425.1,47.86014462]
[1751119765653,0.002,2425.2,2425.1,27.31834562]
[1751119765856,0.002,2425.2,2425.1,47.86014462]
[1751119766027,0.002,2425.2,2425.1,47.56014462]
[1751119767729,0.002,2425.2,2425.1,47.53014462]
[1751119769736,0.002,2425.2,2425.1,47.56014462]
[1751119770845,0.002,2425.2,2425.1,47.56024462]
[1751119771554,0.002,2425.2,2425.1,41.73127962]
[1751119773351,0.002,2425.2,2425.1,41.76327962]
[1751119774256,0.002,2425.2,2425.1,41.67651562]
[1751119775230,0.002,2425.2,2425.1,41.84151562]
[1751119776318,0.002,2425.2,2425.1,27.31834562]
[1751119776520,0.002,2425.2,2425.1,41.64651562]
[1751119776720,0.002,2425.2,2425.1,38.36471562]
[1751119783850,0.002,2425.2,2425.1,40.04071562]
[1751119784761,0.002,2425.2,2425.1,28.17854562]
[1751119784940,0.002,2425.2,2425.1,40.04071562]
[1751119785263,0.002,2425.2,2425.1,39.04071562]
[1751119785668,0.002,2425.2,2425.1,36.85445262]
[1751119785843,0.002,2425.2,2425.1,29.99063177]
[1751119786180,0.002,2425.2,2425.1,36.65445262]
[1751119786759,0.002,2425.2,2425.1,28.17854562]
[1751119786983,0.002,2425.2,2425.1,36.62445262]
[1751119788186,0.002,2425.2,2425.1,29.95963177]
[1751119788344,0.8344,2425.2,2425.1,36.62345262]
[1751119788778,0.8344,2425.2,2425.1,28.17754562]
[1751119794289,0.002,2425.2,2425.1,28.17754562]
[1751119803165,0.002,2425.2,2425.1,19.89354562]
[1751119803395,0.002,2425.2,2425.1,28.17754562]
[1751119805699,0.002,2425.2,2425.1,19.89354562]
[1751119805904,0.002,2425.2,2425.1,28.17754562]
[1751119815802,0.002,2425.2,2425.1,28.94374562]
[1751119828416,0.002,2425.2,2425.1,58.94374562]
[1751119828616,0.002,2425.3,2425.2,13.80832276]
[1751119829018,0.002,2425.3,2425.2,43.80832276]
[1751119830297,0.002,2425.3,2425.2,13.80832276]
[1751119830502,0.002,2425.3,2425.2,43.80832276]
[1751119830702,0.002,2425.4,2425.3,43.79472075]
[1751119830903,0.002,2425.4,2425.3,57.0665416]
[1751119831107,0.002,2425.4,2425.3,57.2721416]
[1751119832421,0.002,2425.4,2425.3,27.2721416]
[1751119832625,0.002,2425.4,2425.3,57.2721416]
[1751119833492,0.7588,2426.0,2425.3,57.2721416]
[1751119833699,0.7188,2426.0,2425.9,9.68712972]
[1751119834025,0.7188,2426.0,2425.9,16.49972972]
[1751119838416,0.7188,2426.0,2425.9,9.83590887]
[1751119850164,0.7188,2426.0,2425.9,3.22890887]
[1751119850337,0.7188,2426.0,2425.9,6.607]
[1751119852644,0.7188,2426.0,2425.9,9.08030887]
[1751119857074,0.7188,2426.0,2425.9,6.607]
[1751119858778,0.7188,2426.0,2425.8,2.47335482]
[1751119858991,0.7188,2426.0,2425.9,6.607]
[1751119864685,0.7188,2426.0,2425.9,9.08030887]
[1751119872498,0.2076,2426.1,2426.0,2.47320692]
[1751119872683,0.002,2426.1,2426.0,2.47320692]
[1751119878259,0.002,2426.1,2426.0,9.68702777]
[1751119878485,0.002,2426.1,2426.0,9.89262777]
[1751119886501,0.002,2426.1,2426.0,9.89262777]
[1751119909499,0.002,2426.1,2426.0,16.49862777]
[1751119909736,0.002,2426.1,2426.0,7.3616]
[1751119909940,0.002,2426.1,2426.0,9.83480692]
[1751119929139,0.002,2426.1,2426.0,10.64620692]
[1751119929603,0.002,2426.1,2426.0,17.31002777]
[1751119930630,0.002,2426.1,2426.0,10.64620692]
[1751119931131,0.002,2426.1,2426.0,42.40056677]
[1751119932034,0.002,2426.1,2426.0,17.31002777]
[1751119932237,0.002,2426.1,2426.0,47.31002777]
[1751119933460,0.002,2426.1,2426.0,17.31002777]
[1751119933640,0.002,2426.1,2426.0,47.31002777]
[1751119934356,0.002,2426.1,2426.0,21.28981892]
[1751119935265,0.002,2426.1,2426.0,31.35035392]
[1751119936080,0.002,2426.1,2426.0,38.01417477]
[1751119936288,0.002,2426.1,2426.0,41.74116077]
[1751119936785,0.002,2426.1,2426.0,31.57733992]
[1751119937398,0.002,2426.1,2426.0,12.36897592]
[1751119937571,0.002,2426.1,2426.0,15.53755992]
[1751119938096,0.002,2426.1,2426.0,12.31920692]
[1751119938313,0.002,2426.1,2426.0,18.98302777]
[1751119939293,0.002,2426.1,2426.0,18.98402777]
[1751119940695,0.002,2426.1,2426.0,12.32020692]
[1751119943011,0.002,2426.1,2426.0,4.04020692]
[1751119943192,0.002,2426.1,2426.0,11.50880692]
[1751119944797,0.002,2426.1,2426.0,3.22880692]
[1751119944997,0.002,2426.1,2426.0,11.50880692]
[1751119945370,0.002,2426.1,2426.0,4.90280692]
[1751119945574,0.002,2426.1,2426.0,11.51080692]
[1751119948073,0.002,2426.1,2426.0,4.90280692]
[1751119948290,0.002,2426.1,2426.0,11.51080692]
[1751119959520,0.002,2426.1,2426.0,10.95980692]
[1751119959676,0.7525,2426.1,2426.0,10.95980692]
[1751119960592,0.7525,2426.1,2426.0,1.8796]
[1751119960795,0.7525,2426.1,2426.0,10.95980692]
[1751119962605,0.7525,2426.1,2426.0,1.8796]
[1751119962911,0.7525,2426.1,2426.0,6.607]
[1751119963989,0.7525,2426.1,2426.0,6.609]
[1751119966086,1.09580228,2426.1,2426.0,6.609]
[1751119966288,0.7525,2426.1,2426.0,6.609]
[1751119967413,0.7525,2426.1,2425.8,2.67892329]
[1751119967719,0.7525,2426.1,2425.9,6.608]
[1751119968015,0.7525,2426.1,2425.7,2.67906031]
[1751119968316,0.7525,2426.1,2425.8,6.61]
[1751119968520,1.10101166,2426.0,2425.9,6.61]
[1751119969303,1.10101166,2426.0,2425.7,2.67909864]
[1751119969517,0.7577,2426.0,2425.8,6.61]
[1751119970704,0.7577,2426.0,2425.8,9.0833963]
[1751119975438,0.002,2426.1,2425.8,9.0833963]
[1751119977248,0.002,2426.1,2425.9,2.47328837]
[1751119980739,0.002,2426.1,2425.8,9.08338393]
[1751119981042,0.002,2426.1,2425.9,2.47322804]
[1751119981336,0.002,2426.1,2426.0,2.47320692]
[1751119981920,0.002,2426.1,2425.9,2.4732594]
[1751119982120,0.002,2426.1,2425.8,9.28892296]
[1751119982321,0.002,2426.1,2425.8,2.47332296]
[1751119982938,0.35017026,2426.1,2425.8,2.47332296]
[1751119983438,0.35017026,2426.1,2425.9,6.611]
[1751119990155,0.35017026,2426.1,2425.9,9.08429996]
[1751119990454,0.002,2426.1,2425.9,9.08429996]
[1751119992653,0.002,2426.1,2425.8,6.61]
[1751119993046,0.002,2426.1,2425.8,9.08341003]
[1751119993937,0.002,2426.1,2425.8,6.61]
[1751119994331,0.002,2426.1,2425.8,9.08341024]
[1751119998264,0.35018068,2426.1,2425.8,6.61]
[1751120001782,2.82330441,2426.1,2425.6,3.79301351]
[1751120002080,0.2056,2426.0,2425.8,6.609]
[1751120006473,0.2056,2426.0,2425.8,9.08235412]
[1751120007978,0.2056,2426.0,2425.8,6.609]
[1751120008839,0.2056,2426.0,2425.7,6.65993654]
[1751120009039,0.9739,2426.0,2425.8,6.608]
[1751120009272,0.9739,2426.0,2425.6,3.22916351]
[1751120009443,0.9739,2426.0,2425.5,6.65993654]
[1751120009444,3.86879493,2426.0,2425.7,6.608]
[1751120009643,0.2056,2425.9,2425.7,6.608]
[1751120011066,0.2056,2425.9,2425.6,2.47360556]
[1751120011371,0.2056,2425.9,2425.5,10.75966543]
[1751120012767,3.12136029,2425.9,2425.5,10.75966543]
[1751120013144,0.64805121,2425.9,2425.5,10.75966543]
[1751120016446,0.64805121,2425.9,2425.5,10.75969728]
[1751120016749,0.2056,2425.9,2425.7,2.47351218]
[1751120020879,0.2056,2425.9,2425.6,2.47355949]
[1751120021074,0.2056,2425.9,2425.7,2.4734941]
[1751120024780,0.2056,2425.9,2425.8,2.47341083]
[1751120024979,0.2076,2426.1,2425.9,2.47330142]
[1751120025278,0.2076,2426.1,2425.9,2.47330887]
[1751120029981,0.2076,2426.1,2425.8,7.4236]
[1751120030286,0.2076,2426.1,2425.8,9.89697245]